Cogmind - Beta 14 @@@ ROGUE MODE // 2024.09.02 @ 12:30:04 Player: Bardic Entropy Result: Self-destructed Performance ------------- Evolutions (2) 1000 Regions Visited (5) 1000 Robots Destroyed (34) 170 Value Destroyed (642) 642 Prototype IDs (25) 500 Alien Tech Used (0) 0 Bonus (388) 388 TOTAL SCORE: 3700 Bonus ------- Follower Combat Kills 105 Aligned with FarCom 300 Friendly Fire -17 Cogmind --------- Core Integrity 540/550 Matter 292/300 Energy 250/250 System Corruption 1% Temperature Warm (102) Movement Treading (160) Location -8/Materials Parts ------- > --- POWER (1) -------- Ion Engine > --- PROPULSION (3) --- Light Treads Light Treads Light Treads > --- UTILITY (4) ------ Large Storage Unit Structural Scanner Machine Analyzer Signal Interpreter > --- WEAPON (3) ------- Beam Cannon Light Assault Rifle Field Lobotomy Kit > --- INVENTORY (15) --- High-capacity Battery (250) High-capacity Matter Pod (200) Seismic Detector Light Assault Rifle Light Assault Rifle Grenade Launcher Improved Datajack Hammer Peak State ------------ > --- POWER ------------ Ion Engine > --- PROPULSION ------- Light Treads Light Treads Light Treads > --- UTILITY ---------- Large Storage Unit Structural Scanner Machine Analyzer Signal Interpreter > --- WEAPON ----------- Beam Cannon Light Assault Rifle Field Lobotomy Kit > --- INVENTORY -------- High-capacity Battery High-capacity Matter Pod Seismic Detector Light Assault Rifle Light Assault Rifle Grenade Launcher Improved Datajack Hammer [Rating: 23] Favorites ----------- Power Ion Engine Engine Ion Engine Propulsion Light Treads Treads Light Treads Wheel Wheel Utility Seismic Detector Device Seismic Detector Storage Large Storage Unit Processor Machine Analyzer Weapon Beam Cannon Energy Gun Small Laser Energy Cannon Beam Cannon Ballistic Gun Light Assault Rifle Special Weapon Field Lobotomy Kit Impact Weapon Hammer Build | -11 -10 -10 -10 -9 -8 ------- Run | Yrd Mat Min Exi Min Mat Slots Evolved 4 | . . . . . 4 Power . | . . . . . . Propulsion 1 | . . . . . 1 Utility 2 | . . . . . 2 Weapon 1 | . . . . . 1 Parts Attached 30 | 7 12 2 . 1 8 Power 3 | 1 1 . . . 1 Engine 3 | 1 1 . . . 1 Core . | . . . . . . Reactor . | . . . . . . Propulsion 10 | 2 5 . . . 3 Treads 8 | 2 3 . . . 3 Leg . | . . . . . . Wheel 2 | . 2 . . . . Hover . | . . . . . . Flight . | . . . . . . Utility 8 | 2 3 1 . . 2 Device 3 | 1 1 1 . . . Storage 3 | 1 2 . . . . Processor 2 | . . . . . 2 Hackware . | . . . . . . Protection . | . . . . . . Artifact . | . . . . . . Weapon 9 | 2 3 1 . 1 2 Energy Gun 2 | 2 . . . . . Energy Cannon 1 | . 1 . . . . Ballistic Gun 3 | . 2 . . 1 . Ballistic Cannon . | . . . . . . Launcher . | . . . . . . Special Weapon 1 | . . . . . 1 Impact Weapon 2 | . . 1 . . 1 Slashing Weapon . | . . . . . . Piercing Weapon . | . . . . . . Special Melee Weapon . | . . . . . . Unidentified Prototypes . | . . . . . . Parts Lost 1 | . 1 . . . . Power . | . . . . . . Propulsion . | . . . . . . Utility . | . . . . . . Weapon 1 | . 1 . . . . Highest Loss Streak 1 | . 1 . . . . To Critical Strikes . | . . . . . . Average Slot Usage (%) 99 | . 98 100 100 100 98 Engine 13 | . 14 14 14 14 8 Treads 17 | . 16 14 14 14 26 Wheel 10 | . 11 14 14 14 . Device 13 | . 14 14 14 14 9 Storage 13 | . 14 14 14 14 9 Processor 2 | . . . . . 18 Energy Gun 5 | . 9 . . . . Energy Cannon 9 | . 8 14 14 14 9 Ballistic Gun 7 | . 9 7 . 14 9 Impact Weapon 4 | . . 6 14 . 6 Peak Build Rating 23 | 7 8 8 9 9 23 Average Rating 8 | 5 7 8 8 9 15 On Entrance 6 | . 7 8 8 9 9 Naked Turns . | . . . . . . Heaviest Build 38 | 13 30 31 31 31 38 Greatest Support 60 | 40 40 10 10 10 60 Greatest Overweight (x) 3 | 3 2 3 3 3 . Average Overweight (x) 1 | . 1 2 3 2 . Largest Inventory Capacity 15 | 8 15 15 15 15 15 Average Capacity 12 | 7 10 15 15 15 15 Most Carried 12 | 1 11 11 12 12 11 Average Carried 8 | . 7 11 11 12 7 Final Capacity 15 | 8 15 15 15 15 15 Final Carried 12 | . 11 11 12 12 8 Class Distribution -------------------- 75% | Mutant 11% | Scavenger-Assassin 10% | Scavenger-Mutant Dominant Class ---------------- Mutant | -10/Materials Mutant | -10/Mines Mutant | -10/Exiles Mutant | -9/Mines Scavenger-Assassin | -8/Materials Resources | -11 -10 -10 -10 -9 -8 ----------- Run | Yrd Mat Min Exi Min Mat Matter Collected 746 | 270 316 59 . 10 91 Remotely . | . . . . . . Salvage Created 1138 | 26 809 35 . 43 225 Parts 70 | 3 50 3 . 1 13 Haulers Intercepted 1 | . 1 . . . . Recyclers Shooed 4 | . 4 . . . . Parts Field Recycled . | . . . . . . Retrieved Matter . | . . . . . . Parts Self-Destructed . | . . . . . . Prevented . | . . . . . . Kills | -11 -10 -10 -10 -9 -8 ------- Run | Yrd Mat Min Exi Min Mat Combat Hostiles Destroyed 18 | . 14 1 . 1 2 Melee 1 | . . . . 1 . Guns 11 | . 10 . . . 1 Cannons 6 | . 4 1 . . 1 Classes Destroyed 10 | 1 8 . . . 1 Worker 6 | . 2 . . . 4 Builder 2 | . 2 . . . . Tunneler 1 | 1 . . . . . Hauler 1 | . 1 . . . . Recycler 2 | . 2 . . . . Mechanic 1 | . 1 . . . . Watcher 3 | . 2 . . . 1 Swarmer 6 | . 6 . . . . Grunt 11 | . 8 1 . 1 1 Sentry 1 | . . . . . 1 Best Kill Streak 5 | 1 5 1 . 1 5 Combat Bots Only 3 | . 3 1 . 1 1 Max Kills in Single Turn 3 | 1 3 1 . 1 1 Gunslinging . | . . . . . . Exploded . | . . . . . . Melee 1 | . . . . 1 . Uniques/NPCs Destroyed . | . . . . . . Combat | -11 -10 -10 -10 -9 -8 -------- Run | Yrd Mat Min Exi Min Mat Hostile Shots Fired 83 | . 68 7 . 1 7 Missed 17 | . 14 2 . . 1 Damage Taken 769 | . 562 74 . 10 123 Core 132 | . 112 10 . . 10 Absorbed by Shields . | . . . . . . Regen/Repaired (Parts) 45 | . . . . . 45 Core Remaining (%) 75 | 100 . . . 51 . Volleys Fired 116 | 6 85 5 . . 20 Largest 2 | 2 2 2 . . 2 Hottest 80 | 80 80 80 . . 80 Shots Fired 215 | 12 154 10 . . 39 Gun 165 | 12 129 5 . . 19 Cannon 49 | . 25 5 . . 19 Launcher . | . . . . . . Special 1 | . . . . . 1 Kinetic 54 | . 30 5 . . 19 Thermal 160 | 12 124 5 . . 19 Explosive . | . . . . . . Electromagnetic . | . . . . . . Robot Hit Streak 9 | 3 9 4 . . 3 Robot Miss Streak 5 | 3 5 3 . . 3 Penetration Max . | . . . . . . Secondary Targets 3 | . 3 . . . . Max Gunslinging Chain 1 | . 1 . . . . Shots Hit Robots 124 | 5 89 6 . 1 23 Core Hits 53 | 1 37 3 . 1 11 Critical Kills . | . . . . . . Critical Parts Destroyed 1 | . 1 . . . . Critical Strikes 1 | . 1 . . . . Destroy 1 | . 1 . . . . Melee Attacks 4 | . . . . 1 3 Impact 4 | . . . . 1 3 Slashing . | . . . . . . Piercing . | . . . . . . Sneak Attacks 2 | . . . . . 2 Combat Hostiles . | . . . . . . Follow-up Attacks . | . . . . . . Damage Inflicted 1833 | 53 1323 77 . 19 361 Guns 1068 | 53 885 23 . . 107 Cannons 441 | . 213 54 . . 174 Explosions 225 | . 225 . . . . Melee 99 | . . . . 19 80 Ramming . | . . . . . . Kinetic 262 | . 132 23 . . 107 Thermal 1247 | 53 966 54 . . 174 Explosive 225 | . 225 . . . . Electromagnetic . | . . . . . . Impact 99 | . . . . 19 80 Slashing . | . . . . . . Piercing . | . . . . . . Highest Corruption 1 | . . . . . 1 Average Corruption 1 | . . . . . 1 Corruption Purged . | . . . . . . Corruption Blocked . | . . . . . . Effects 3 | . . . . . 3 Message Errors 1 | . . . . . 1 Heat Flow Errors 1 | . . . . . 1 Data Loss (minor) 1 | . . . . . 1 Overload Shots . | . . . . . . Overflow Damage 48 | . 38 . . . 10 Projectiles . | . . . . . . Explosions 38 | . 38 . . . . Melee 10 | . . . . . 10 Knockbacks 1 | . . . . . 1 Impact 1 | . . . . . 1 Kinetic . | . . . . . . Secondary . | . . . . . . Self-Inflicted Damage . | . . . . . . Shots . | . . . . . . Rammed . | . . . . . . Targets Rammed . | . . . . . . Kicked . | . . . . . . Crushed . | . . . . . . Highest Temperature 216 | 36 216 104 . . 168 Average Temperature 67 | 20 77 44 . . 43 Received Heat Transfer 285 | . 204 39 . 6 36 Siege Activations . | . . . . . . Robots Corrupted 1 | . . . . . 1 Combat Hostiles . | . . . . . . Parts Fried 2 | . . . . . 2 Impact Corruptions 2 | . . . . . 2 Robots Melted . | . . . . . . Combat Hostiles . | . . . . . . Parts Melted 7 | . 7 . . . . Heat Transferred 2725 | 125 2119 111 . . 370 Parts Sabotaged . | . . . . . . Parts Stolen . | . . . . . . Parts Stripped . | . . . . . . Power Chain Reactions . | . . . . . . Alert | -11 -10 -10 -10 -9 -8 ------- Run | Yrd Mat Min Exi Min Mat Peak Influence 250 | 5 250 137 . 68 113 Initial 84 | . 3 84 . . 26 Average 100 | 1 122 118 . 63 30 Maximum Alert Level 1 | . 1 . . . . Low Security (%) 96 | 100 93 100 . 100 100 Level 1 3 | . 6 . . . . Level 2 . | . . . . . . Level 3 . | . . . . . . Level 4 . | . . . . . . Level 5 . | . . . . . . High Security . | . . . . . . Max Security . | . . . . . . Squads Dispatched 7 | . 5 1 . . 1 Investigation 5 | . 5 . . . . Extermination . | . . . . . . Reinforcement . | . . . . . . Assault 1 | . . 1 . . . Garrison 1 | . . . . . 1 Intercept . | . . . . . . Searches Triggered . | . . . . . . Construction Impeded . | . . . . . . Haulers Reinforced . | . . . . . . Active Scanning Responses . | . . . . . . Cargo Convoy Interrupts . | . . . . . . Stealth | -11 -10 -10 -10 -9 -8 --------- Run | Yrd Mat Min Exi Min Mat Distress Signals 4 | . 3 . . . 1 Communications Jammed . | . . . . . . Distress Signals . | . . . . . . Times Spotted 39 | . 27 2 . 2 8 Peak Tracking Total 3 | . 3 2 . 2 3 Tactical Retreats 1 | . 1 . . . . Traps | -11 -10 -10 -10 -9 -8 ------- Run | Yrd Mat Min Exi Min Mat Traps Triggered 4 | . 3 . . . 1 Indirectly . | . . . . . . Trap Hack Attempts . | . . . . . . Triggered . | . . . . . . Disarmed . | . . . . . . Reprogrammed . | . . . . . . Reused . | . . . . . . Traps Extracted . | . . . . . . Installed . | . . . . . . Triggered . | . . . . . . Machines | -11 -10 -10 -10 -9 -8 ---------- Run | Yrd Mat Min Exi Min Mat Machines Disabled 3 | . 3 . . . . Max in Single Turn 1 | . 1 . . . . Machines Repaired . | . . . . . . Machines Dismantled . | . . . . . . Machines Sabotaged . | . . . . . . Overloaded Fab Kills . | . . . . . . Hacking | -11 -10 -10 -10 -9 -8 --------- Run | Yrd Mat Min Exi Min Mat Machines Accessed 12 | . 10 . 1 . 1 Terminals 8 | . 8 . . . . Fabricators . | . . . . . . Repair Stations 1 | . . . . . 1 Recycling Units 2 | . 2 . . . . Scanalyzers . | . . . . . . Garrison Access . | . . . . . . Total Hacks 46 | . 41 . 1 . 4 Successful 32 | . 29 . 1 . 2 Failed 14 | . 12 . . . 2 Catastrophic . | . . . . . . Database Lockouts . | . . . . . . Manual 38 | . 37 . 1 . . Terminals 37 | . 37 . . . . Fabricators . | . . . . . . Repair Stations 4 | . . . . . 4 Recycling Units 4 | . 4 . . . . Scanalyzers . | . . . . . . Garrison Access . | . . . . . . Terminal Hacks 12 | . 11 . 1 . . Robot Analysis 6 | . 6 . . . . Prototype ID Bank 1 | . 1 . . . . Alert Level 2 | . 2 . . . . Transport Status 1 | . 1 . . . . Hauler Manifests 1 | . 1 . . . . Derelict Proto ID Bank 1 | . . . 1 . . Fabricator Hacks . | . . . . . . Repair Station Hacks 2 | . . . . . 2 Scan Component 1 | . . . . . 1 Repair 1 | . . . . . 1 Recycling Unit Hacks 2 | . 2 . . . . Report Inventory 1 | . 1 . . . . Retrieve Components 1 | . 1 . . . . Scanalyzer . | . . . . . . Garrison Access Hacks . | . . . . . . Unauthorized Hacks 16 | . 16 . . . . Terminals 14 | . 14 . . . . Botnet 7 | . 7 . . . . Operators 1 | . 1 . . . . Skim 6 | . 6 . . . . Fabricators . | . . . . . . Repair Stations . | . . . . . . Recycling Units 2 | . 2 . . . . Tunnel 2 | . 2 . . . . Scanalyzers . | . . . . . . Garrison Access . | . . . . . . Data Cores Recovered . | . . . . . . Used . | . . . . . . Hacking Detections 9 | . 8 . . . 1 Full Trace Events 1 | . 1 . . . . Feedback Events . | . . . . . . Feedback Blocked . | . . . . . . Robot Schematics Acquired . | . . . . . . Robots Built . | . . . . . . Authchips . | . . . . . . Time . | . . . . . . Total Robot Build Rating . | . . . . . . Part Schematics Acquired . | . . . . . . Parts Built . | . . . . . . Authchips . | . . . . . . Time . | . . . . . . Total Part Build Rating . | . . . . . . Parts Repaired 1 | . . . . . 1 Time 26 | . . . . . 26 Parts Recycled . | . . . . . . Recycled Matter . | . . . . . . Retrieved Matter . | . . . . . . Retrieved Components 3 | . 3 . . . . Parts Scanalyzed . | . . . . . . Part Schematics Acquired . | . . . . . . Parts Damaged . | . . . . . . Bothacking | -11 -10 -10 -10 -9 -8 ------------ Run | Yrd Mat Min Exi Min Mat Used RIF Installer . | . . . . . . Robots Hacked . | . . . . . . Non-combat . | . . . . . . Combat . | . . . . . . Robot Hacks Applied . | . . . . . . Relay Couplers Released . | . . . . . . Fabnet Peak Effective % . | . . . . . . Robots Rewired . | . . . . . . Allies Hacked . | . . . . . . Hacks Repelled . | . . . . . . Allies | -11 -10 -10 -10 -9 -8 -------- Run | Yrd Mat Min Exi Min Mat Total Allies 2 | . . 1 . . 1 Largest Group 1 | . . 1 1 1 1 Highest-Rated Group 31 | . . 31 31 31 31 Highest-Rated Ally 31 | . . 31 31 31 31 Total Orders . | . . . . . . Ally Attacks 27 | . . 10 . 4 13 Total Damage 481 | . . 125 . 83 273 Kills 3 | . . 1 . 1 1 Allies Corrupted . | . . . . . . Allies Melted . | . . . . . . Field Lobotomies 1 | . . . . . 1 Intel | -11 -10 -10 -10 -9 -8 ------- Run | Yrd Mat Min Exi Min Mat Robot Analysis Total 5 | . 5 . . . . Derelict Logs Recovered 1 | . . 1 . . . Drone Launches . | . . . . . . Drone Recoveries . | . . . . . . Exploration | -11 -10 -10 -10 -9 -8 ------------- Run | Yrd Mat Min Exi Min Mat Turns Passed 2600 | 96 1402 277 405 57 363 Spaces Moved 1569 | 45 821 213 320 38 132 Core 11 | 11 . . . . . Treads 359 | 34 193 . . . 132 Legs . | . . . . . . Wheels 1199 | . 628 213 320 38 . Hover . | . . . . . . Flight . | . . . . . . Fastest Speed 50 | 50 95 110 125 110 160 Average Speed 121 | 152 113 116 125 111 160 Slowest Speed 200 | 200 160 125 125 125 160 Overloaded Moves . | . . . . . . Propulsion Burnouts . | . . . . . . Robots Hopped . | . . . . . . Cave-ins Triggered . | . . . . . . Exploration Rate (%) 39 | 5 100 39 70 10 14 Regions Visited 5 Branch Regions 3 Pre-discovered Areas 3 | . 2 1 . . . Known Exits Taken 2 | . . . 1 1 . Unknown Exits Taken 3 | 1 1 1 . . . Scrap Searched . | . . . . . . Spaces Dug 1 | . . . . . 1 Terrain Destroyed 7 | . 6 . . . 1 Melee 1 | . . . . . 1 Projectile . | . . . . . . AOE 6 | . 6 . . . . Terrain Rammed . | . . . . . . Walls Destroyed . | . . . . . . Machines Disabled . | . . . . . . Actions | -11 -10 -10 -10 -9 -8 --------- Run | Yrd Mat Min Exi Min Mat Total 2047 | 58 1142 231 325 50 241 Wait 300 | . 198 12 5 11 74 Move 1564 | 44 820 212 319 37 132 Hop . | . . . . . . Pick Up 19 | 1 15 . 1 . 2 Fast Attach 8 | 6 1 . . . 1 Attach 5 | 1 . . . . 4 Detach . | . . . . . . Swap 17 | . 11 2 . 1 3 Drop 14 | . 12 . . . 2 Fire 116 | 6 85 5 . . 20 Melee 4 | . . . . 1 3 Ram . | . . . . . . Kick . | . . . . . . Crush . | . . . . . . Escape Stasis . | . . . . . . Rewire . | . . . . . . Trap . | . . . . . . Miscellaneous . | . . . . . . Route ------- -11/Scrapyard -10/Materials (discovered 4 exits: *Mat x3 / [*Min]) -10/Mines (discovered 4 exits: Mat x2 / *Exi / Sub) -10/Exiles (discovered 2 exits: *Min x2) -9/Mines (discovered 2 exits: *Mat x2) -8/Materials (discovered 1 exit: [*Fac]) History --------- Turn | Location | Event 14 | -11/Scrapyard | Discovered new exit (range 15) 97 | -11/Scrapyard | Entered Materials 300 | -10/Materials | Build established: Mutant 441 | -10/Materials | Discovered new exit (range 10) 905 | -10/Materials | Discovered new exit (range 7) 1152 | -10/Materials | Discovered new exit (range 7) 1230 | -10/Materials | Discovered new exit (range 16) 1317 | -10/Materials | Learned 4 Subcaves zone layouts 1363 | -10/Materials | Learned 2 Mines zone layouts 1429 | -10/Materials | Loaded intel: 6 trap records 1447 | -10/Materials | Learned Recycling recycling unit intel 1499 | -10/Materials | Entered Mines 1500 | -10/Mines | Met a Derelict testing a Signal Generator 1500 | -10/Mines | Identified exit to Materials 1501 | -10/Mines | Identified exit to Subcaves 1763 | -10/Mines | Deemed a non-threat by the Exiles lab entrance 1763 | -10/Mines | Discovered new exit (range 5) 1776 | -10/Mines | Entered Exiles 1776 | -10/Exiles | Accompanied by 1 ally 1777 | -10/Exiles | Identified exit to Mines 1808 | -10/Exiles | Met 8R-AWN 1828 | -10/Exiles | Met EX-HEX 1894 | -10/Exiles | Met EX-DEC 2003 | -10/Exiles | Met EX-BIN 2020 | -10/Exiles | Aligned with FarCom system 2021 | -10/Exiles | Given EX-Vault access code 2050 | -10/Exiles | Opened EX-Vault 2059 | -10/Exiles | Found Field Lobotomy Kit 2087 | -10/Exiles | Warned to stay clear of 0b10 Research branches 2181 | -10/Exiles | Left Exiles lab with Field Lobotomy Kit 2181 | -10/Exiles | Entered Mines 2181 | -9/Mines | Accompanied by 1 ally 2182 | -9/Mines | Identified exit to Materials 2224 | -9/Mines | Discovered exit to Materials (range 11) 2238 | -9/Mines | Entered Materials 2238 | -8/Materials | Accompanied by 1 ally 2238 | -8/Materials | Evolved 4 slots: Propulsion x1, Utility x2, Weapon x1 2308 | -8/Materials | Repaired Ion Engine 2551 | -8/Materials | Assimilated H-55 Commando with FLK Orb 2557 | -8/Materials | Discovered new exit (range 16) 2571 | -8/Materials | Garrison activated, responded to threat 2601 | -8/Materials | Self-destructed Last Messages --------------- 02565_ Slug penetrates Y-45 Defender. 02567_ W-25 Informer destroyed. 02568_ Slug penetrates Wall. 02568_ K-01 Serf collects debris. 02570_ Y-45 Defender destroyed. 02571_ W-25 Informer calls for garrison support. 02571_ ALERT: Activating Garrison Access M001. 02571_ K-01 Serf collects debris. 02572_ Acquired 14 matter. 02574_ Extracted 3 matter. 02574_ K-01 Serf collects debris. 02580_ Slug penetrates Wall. 02583_ Slug penetrates G-47 Trooper. 02583_ G-47 Trooper destroyed. 02583_ K-01 Serf collects debris. 02584_ K-01 Serf destroyed. 02586_ Slug penetrates Wall. 02587_ Commando 3a destroyed. 02593_ Destroyed Lgt. Ion Engine. 02598_ G-47 Trooper destroyed. Map ----- +----------------------------------------------------+ | ######### """ ######## ##???????????????? | | #############+######## ##???????????????? | | ##???????????????? | | #####+################ ###### ##??????????? | | ############# ###### ##??????????? | | ??""" ??????????????## ##??????????? | | ?"""""?????????????###+## ##??????????? | | ?"""""?????????????## + *% ##??????????? | | ?"""""?????????????## # #############??????????? | | ??"""??????????????## # #############??????????? | | ???????????????????## # ##?????????????????????? | | ???????????????????## # ##############?????????? | | ???????????????????## # ##############?????????? | | ???????????????????## # + ##?????????? | | ???????????????????###### # """ ##?????????? | | ???????????????????###### # ""R" ##?????????? | | ???????????????????????## # "" " ##?????????? | | ???????????????????????## + ##?????????? | | ???????????????????????## u # ##?????????? | | ???????????????????????## # ##?"""?"""?? | | ???????????"""?"""?????## # ##?"""?"""?? | | ???????????"""?"""?????## ############?"""?"""?? | | ???????????"""?"""?????## ############?????????? | | ????????????g??????????## ##???????????????????? | | ???????????""T""???????## = ##???????????????????? | | ???????????"""""???????##@%[##???????????????????? | | ???????????????????????## * ##???????????????????? | | ???????????????????????##!= ##??????????g????????? | | ???????????????????"""?##%= ##????????o???g??????? | | ???????????????????"""?##%= ###??????????????????? | | ??????????w????????"""?#=** ##??????????????????? | | ????????????????????????u![ ##??????????????????? | | ???????????????????"""?? !T ##??????????????????? | | ???????????????????""" # ##??????????????????? | | ???????????????????""" # = ##??????????????????? | | ?????????????????????? ## ###??????????????????? | | ???????????????????"?" ## # ??????????????????? | | ???????????????????"G"??? # """????????????????? | | ???????????????????"""??? + "T"????????????????? | | ????????????????????????? # ???????????????????? | | ????????????????????????? < # ???????????????????? | | ????????????????????????# ??????"""????????????? | | ????????????????????????####??????"""????????????? | | ????????????????????????####??????"""????????????? | | ?????????????????????????????????????????????????? | | ?????????????????????????????????????????????????? | | ?????????????????????????????????????????????????? | | ?????????????????????????????????????????????????? | | ?????????????????????????????????????????????????? | | | +----------------------------------------------------+ Best States ------------- Heat Dissipation 31 Energy Generation 10 Energy Capacity 250 Matter Stores 300 Matter Capacity 300 Sight Range 16 Terrain Scan Density 10 Evasion (%) 41 Recoil Reduction 3 Item Schematics ----------------- None Robot Schematics ------------------ None Fabricated ------------ Nothing Alien Tech Used ----------------- None Achievements -------------- Party Time Challenges ------------ None Game ------ Seed MeleeDisruptorProtection Manual? 0 Play Time 00:41:15 Cumulative 36.4 hours Start 2024.09.02 @ 11:51:08 End 2024.09.02 @ 12:30:04 Sessions 1 Manual Loads 0 Difficulty Rogue Special Mode None Game No. 35 Rogue 35 Adventurer 0 Explorer 0 Win Type - Total 0 Types 0/0/0/0/0/0/0/0/0 Lore% 13 Gallery% 20 Achievement% 21 Wizard Run 0 Options --------- Layout 0 ASCII 0 Keyboard 0 Movement Mouse Keybinds 0 Fullscreen 1 Font 16/TerminusTall Map View 75x55 Zoom Use 0% Tactical HUD 1 Map Filters NONE Filters NONE Steam 1 RUN: 0a2548e0-1cb0-4543-9e18-883e0327650e